bitfinex/quotes_ETHUSD_20250403
["timestamp","ask_amount","ask_price","bid_price","bid_amount"]
[1743638690919,0.05828953,1790.5,1790.1,0.767]
[1743638691517,0.05828953,1790.5,1790.1,1.4582234]
[1743638691827,0.05828953,1790.5,1790.2,0.05585006]
[1743638692152,0.05828953,1790.5,1790.3,6.41346]
[1743638692357,0.05828953,1790.5,1790.4,5.64118118]
[1743638692963,0.05828953,1790.5,1790.4,6.41128118]
[1743638693143,0.05828953,1790.5,1790.4,7.6109553]
[1743638694042,0.05828953,1790.5,1790.4,7.55511412]
[1743638694445,0.05828953,1790.5,1790.4,1.96977412]
[1743638694675,0.05828953,1790.5,1790.4,2.02560902]
[1743638694862,0.05828953,1790.5,1790.4,1.96977412]
[1743638695469,6.037,1791.6,1790.5,3.0]
[1743638695667,0.7534,1791.8,1790.7,0.7552]
[1743638695875,0.7534,1791.8,1790.8,6.036]
[1743638696171,3.0,1791.8,1790.9,0.81101645]
[1743638696376,47.926,1791.9,1791.0,0.7552]
[1743638696669,41.89,1791.9,1791.0,0.7552]
[1743638696878,41.89,1791.9,1791.2,0.7552]
[1743638697076,0.7534,1792.5,1791.4,0.7552]
[1743638697377,0.7534,1792.7,1791.5,0.81099387]
[1743638697589,5.57849,1792.6,1791.7,0.7552]
[1743638697868,3.0,1792.5,1791.7,6.8072]
[1743638698074,5.5785,1792.6,1791.7,6.8072]
[1743638698437,3.0,1792.5,1791.7,6.8072]
[1743638699088,9.33167,1792.7,1791.7,12.38848]
[1743638699365,5.99450225,1792.8,1791.9,0.7577]
[1743638699549,3.0,1792.4,1791.9,0.7577]
[1743638699758,3.59945023,1792.7,1792.0,0.05579315]
[1743638699964,0.59945023,1792.7,1792.0,0.05579315]
[1743638700336,0.59945023,1792.7,1791.9,0.7577]
[1743638700538,3.0,1792.5,1792.0,0.05578982]
[1743638700945,47.985,1792.9,1792.1,0.8089]
[1743638701185,41.94,1792.9,1792.1,6.38879]
[1743638701391,0.05,1792.9,1792.3,0.8089]
[1743638701551,0.05,1792.9,1792.4,0.05577295]
[1743638701749,0.05,1792.9,1792.5,0.05577295]
[1743638702345,0.05,1792.9,1792.6,0.7614]
[1743638702545,0.05,1792.9,1792.7,0.05577335]
[1743638702990,0.05,1792.9,1792.6,0.7614]
[1743638703495,0.05,1792.9,1792.7,0.05577297]
[1743638704353,0.05,1792.9,1792.7,0.05576414]
[1743638704658,0.05,1792.9,1792.6,0.7614]
[1743638705093,0.05,1792.9,1792.8,0.8088]
[1743638705249,0.05,1792.9,1792.8,1.45306041]
[1743638705592,0.05,1792.9,1792.8,0.86456225]
[1743638705742,0.05,1792.9,1792.8,5.63362225]
[1743638705940,0.05,1793.9,1792.9,0.8244]
[1743638706149,3.0,1793.7,1793.1,0.8244]
[1743638706367,0.02914238,1793.8,1793.1,0.8244]
[1743638706574,0.02914238,1793.7,1793.1,0.8244]
[1743638706978,5.57552,1793.6,1793.1,0.8244]
[1743638707288,3.0,1793.3,1792.9,1.22819578]
[1743638707461,9.36513,1793.5,1792.9,0.805]
[1743638707662,0.02914238,1793.2,1792.9,0.805]
[1743638708188,0.02914238,1793.2,1793.0,0.05576403]
[1743638708398,0.02914238,1793.2,1792.9,0.805]
[1743638708554,3.02914238,1793.2,1792.9,0.805]
[1743638708758,3.88969262,1793.2,1792.7,6.8501]
[1743638708968,3.88969262,1793.2,1792.7,0.7701]
[1743638709189,9.46642262,1793.2,1792.7,0.7701]
[1743638709581,0.88969262,1793.2,1792.8,0.05577306]
[1743638709776,0.02914238,1793.2,1792.8,0.05577306]
[1743638710120,9.39256,1792.9,1792.5,0.8214]
[1743638710490,0.02914238,1792.8,1792.5,0.8214]
[1743638711163,0.02914238,1792.8,1792.3,0.7823]
[1743638711373,0.02914238,1792.8,1792.4,0.05578366]
[1743638711599,0.02914238,1792.8,1792.3,0.7823]
[1743638711916,0.41354662,1792.8,1792.3,0.7823]
[1743638712206,3.0,1792.3,1791.8,6.908]
[1743638712371,8.57977,1792.2,1791.6,6.908]
[1743638712574,3.0,1792.2,1791.6,6.908]
[1743638713685,3.0,1792.2,1791.7,0.05580091]
[1743638713889,3.0,1792.2,1791.7,0.69638009]
[1743638714286,3.0,1792.2,1791.7,0.75217969]
[1743638714585,0.7932,1792.5,1791.7,0.75217584]
[1743638714787,3.0,1792.4,1791.8,0.8195]
[1743638715078,3.0,1792.6,1791.9,6.08]
[1743638715291,54.25509,1792.7,1792.0,0.608]
[1743638715608,3.0,1792.6,1792.0,0.608]
[1743638717717,3.0,1792.6,1791.9,6.08]
[1743638717894,0.8158,1792.3,1791.4,0.7778]
[1743638718083,0.8158,1792.3,1791.5,6.08]
[1743638718084,3.0,1792.2,1791.5,6.08]
[1743638718281,8.57975,1792.2,1791.5,6.08]
[1743638718485,3.0,1792.2,1791.6,0.7778]
[1743638718821,3.0,1792.2,1791.6,0.83359637]
[1743638719021,3.0,1792.2,1791.6,0.7778]
[1743638719533,41.846,1792.7,1791.9,0.7719]
[1743638719701,47.872,1792.7,1792.0,0.05578721]
[1743638719901,0.8323,1793.0,1792.1,6.029]
[1743638720194,0.824,1793.2,1792.4,0.8303]
[1743638720503,3.824,1793.2,1792.4,0.8303]
[1743638720813,5.57706,1793.1,1792.4,0.8303]
[1743638721005,6.40062,1793.2,1792.5,0.05577606]
[1743638721202,3.0,1793.1,1792.4,0.8303]
[1743638721382,3.824,1793.2,1792.4,0.8303]
[1743638721590,3.824,1793.2,1792.4,6.40938]
[1743638721810,9.40081,1793.2,1792.4,0.8303]
[1743638722192,6.40081,1793.2,1792.4,0.8303]
[1743638722393,3.824,1793.2,1792.4,0.8303]
[1743638722594,3.0,1793.0,1792.5,0.05577643]
[1743638723008,3.824,1793.2,1792.5,0.05577643]
[1743638723593,0.824,1793.2,1792.5,0.05577643]
[1743638723798,9.015,1793.3,1792.6,0.7504]
[1743638724025,9.015,1793.3,1792.7,0.05576711]
[1743638724820,5.57663,1793.2,1792.5,6.014]
[1743638725019,3.0,1793.0,1792.6,0.05576636]
[1743638725518,3.0,1793.2,1792.6,0.05576636]
[1743638725724,3.0,1793.2,1792.7,0.8304]
[1743638726318,3.0,1793.2,1792.8,0.05576689]
[1743638727014,3.0,1793.2,1792.7,0.8304]
[1743638727327,3.0,1793.2,1792.8,0.05576692]
[1743638728131,5.57513,1793.7,1792.9,0.8062]
[1743638728331,5.5757,1793.5,1793.0,6.08]
[1743638728541,0.02914238,1793.6,1793.1,0.66375863]
[1743638728836,0.02914238,1793.4,1793.3,0.8092]
[1743638728991,0.02914238,1793.4,1793.3,0.86494867]
[1743638729434,0.02914238,1793.4,1793.3,12.52125367]
[1743638729593,0.05,1793.9,1793.6,5.57518]
[1743638729789,0.05,1793.9,1793.8,6.33575]
[1743638730041,0.05,1793.9,1793.8,6.39147112]
[1743638730194,0.05,1793.9,1793.8,12.8815342]
[1743638730530,0.05,1794.9,1794.2,5.57331]
[1743638730735,0.05,1794.9,1794.4,0.8005]
[1743638730942,0.05,1794.9,1794.5,0.05570968]
[1743638731143,0.05,1794.9,1794.5,6.08]
[1743638731306,0.05,1794.9,1794.6,0.05570582]
[1743638731512,0.05,1794.9,1794.6,6.13570581]
[1743638731710,0.05,1794.9,1794.7,7.49577058]
[1743638731914,0.05,1794.9,1794.8,6.91439906]
[1743638732239,0.05,1795.9,1795.2,0.7787]
[1743638732535,0.05,1795.9,1795.3,6.13568467]
[1743638732733,0.05,1795.9,1795.5,5.56929]
[1743638732937,0.05,1795.9,1795.7,0.7859]
[1743638733138,0.05,1795.9,1795.8,0.05566941]
[1743638733546,0.05,1795.9,1795.7,6.8659]
[1743638733753,0.05,1795.9,1795.8,0.05567008]
[1743638734052,0.05,1795.9,1795.7,6.8659]
[1743638734229,0.05,1795.9,1795.8,6.25513]
[1743638734738,0.05,1795.9,1795.8,7.05593]
[1743638734933,0.05,1795.9,1795.8,1.54304997]
[1743638735235,0.05,1795.9,1795.8,0.8008]
[1743638735736,0.05,1795.9,1795.5,6.028]
[1743638735924,0.05,1795.9,1795.5,6.8078]
[1743638736124,3.0,1795.8,1795.4,6.08]
[1743638736334,8.56861,1795.8,1795.2,0.7798]
[1743638736542,9.36141,1795.8,1795.2,0.7798]
[1743638736709,3.0,1795.6,1794.8,6.8598]
[1743638737053,3.0,1795.0,1794.5,0.7798]
[1743638737410,5.57081,1795.1,1794.5,0.7798]
[1743638737614,3.0,1795.0,1794.5,1.46578]
[1743638737843,3.0,1794.6,1794.0,0.8212]
[1743638738031,3.0,1794.8,1794.0,0.8212]
[1743638738032,8.57179,1794.8,1794.0,0.8212]
[1743638738348,3.0,1794.9,1794.1,5.5738]
[1743638738507,6.045,1795.0,1794.1,11.65363]
[1743638738711,3.0,1795.1,1794.2,5.57328]
[1743638738937,8.57088,1795.1,1794.3,0.557328]
[1743638739116,8.57088,1795.1,1794.1,6.08]
[1743638739317,3.0,1795.1,1794.3,5.57317]
[1743638739555,3.0,1795.1,1794.5,0.7581]
[1743638739912,3.0,1795.1,1794.6,0.05570589]
[1743638740308,3.0,1795.2,1794.5,0.7581]
[1743638740517,3.0,1795.1,1794.5,2.605279]
[1743638740724,8.57084,1795.1,1794.5,0.7581]
[1743638740954,3.0,1795.0,1794.4,6.08]
[1743638741115,0.7577,1794.9,1794.4,6.08]
[1743638741308,5.57134,1794.9,1794.4,6.08]
[1743638741512,8.57103,1795.0,1794.4,6.08]
[1743638741823,3.0,1795.0,1794.5,0.05571935]
[1743638742412,8.57117,1795.0,1794.4,6.08]
[1743638742950,8.57117,1795.0,1794.3,6.08]
[1743638743251,3.0,1795.0,1794.4,0.05571908]
[1743638743459,3.0,1795.0,1794.4,6.74929099]
[1743638743613,0.7842,1795.4,1794.5,11.65244]
[1743638743958,0.7842,1795.4,1794.7,0.8283]
[1743638744257,0.05,1795.9,1795.1,0.7943]
[1743638744415,0.05,1795.9,1795.3,5.57007]
[1743638744617,0.05,1795.9,1795.4,6.637007]
[1743638744816,0.05,1795.9,1795.5,11.70499554]
[1743638745042,0.05,1795.9,1795.6,6.9053]
[1743638745224,0.05,1795.9,1795.8,5.56854]
[1743638745426,0.05,1795.9,1795.8,11.70420232]
[1743638745627,0.55,1796.1,1796.0,5.56792]
[1743638745920,0.55,1796.1,1796.0,18.62877469]
[1743638746113,0.55,1796.1,1796.0,18.57312]
[1743638747675,0.55,1796.1,1796.0,13.0052]
[1743638747963,0.55,1796.1,1796.0,18.57312]
[1743638748159,0.55,1796.1,1796.0,20.987235]
[1743638748864,0.55,1796.1,1796.0,15.419315]
[1743638749177,0.55,1796.1,1796.0,3.224315]
[1743638749466,0.55,1796.1,1796.0,0.8102]
[1743638749672,0.55,1796.1,1796.0,0.86586343]
[1743638749873,0.55,1796.1,1796.0,12.51378343]
[1743638750188,0.55,1796.1,1796.0,12.45812]
[1743638750771,0.55,1796.1,1796.0,6.8902]
[1743638750954,0.55,1796.1,1796.0,8.745242]
[1743638751153,0.55,1796.1,1796.0,14.830242]
[1743638751365,0.55,1796.1,1795.8,6.08]
[1743638751739,0.55,1796.1,1796.0,5.56792]
[1743638752067,0.05,1796.9,1796.4,5.56662]
[1743638752374,0.05,1796.9,1796.5,12.194]
[1743638752571,0.05,1796.9,1796.6,0.05564318]
[1743638752738,0.05,1796.9,1796.6,6.90454318]
[1743638752930,0.05,1796.9,1796.7,0.69045432]
[1743638753136,0.05,1796.9,1796.8,0.05563858]
[1743638753454,0.05,1796.9,1796.7,0.69045432]
[1743638753659,0.05,1796.9,1796.6,6.8489]
[1743638754259,0.05,1796.9,1796.7,0.05564651]
[1743638754573,0.05,1796.9,1796.6,6.8489]
[1743638754950,0.05,1796.9,1796.7,0.05564377]
[1743638755148,0.05,1796.9,1796.6,6.8489]
[1743638755349,0.05,1796.9,1796.7,0.68489]
[1743638755842,0.05,1796.9,1796.8,0.05564102]
[1743638756073,0.05,1796.9,1796.8,5.62108102]
[1743638756377,0.05,1796.9,1796.8,0.05564102]
[1743638756742,0.05,1796.9,1796.8,5.62108102]
[1743638756970,0.05,1796.9,1796.8,6.80823912]
[1743638757173,0.05,1796.9,1796.8,12.88823912]
[1743638757384,0.05,1796.9,1796.8,12.8325981]
[1743638757745,0.05,1796.9,1796.8,7.2671581]
[1743638757991,0.05,1796.9,1796.8,7.32279542]
[1743638758291,0.05,1796.9,1796.8,12.8325981]
[1743638759077,0.05,1796.9,1796.8,13.6177981]
[1743638759277,0.05,1797.9,1797.1,5.56451]
[1743638759477,0.05,1797.9,1797.6,5.5628]
[1743638759679,0.05,1797.9,1797.7,6.16560868]
[1743638759893,0.05,1797.9,1797.7,6.11]
[1743638760088,0.05,1797.9,1797.7,11.67265]
[1743638760264,0.05,1797.9,1797.8,0.7507]
[1743638760448,0.05,1797.9,1797.8,2.04477]
[1743638761096,0.05,1797.9,1797.7,6.08]
[1743638761262,8.56236,1797.8,1797.3,12.179]
[1743638761464,8.56236,1797.8,1797.0,12.194]
[1743638762087,3.0,1797.8,1797.0,12.194]
[1743638762289,0.05,1797.9,1797.0,17.7587]
[1743638762500,8.56254,1797.8,1797.1,1.77587]
[1743638762661,3.0,1797.6,1797.0,12.194]
[1743638763088,3.05,1797.9,1797.1,0.05562917]
[1743638763256,5.56248,1797.8,1797.0,12.194]
[1743638763473,5.56298,1797.6,1797.0,6.08]
[1743638763785,0.7634,1797.4,1797.0,6.08]
[1743638763988,5.56335,1797.5,1796.9,0.821]
[1743638764674,11.12683,1797.5,1796.9,0.821]
[1743638764887,14.12616,1797.6,1796.9,0.821]
[1743638765234,3.0,1797.5,1797.0,0.05563504]
[1743638765397,8.56329,1797.5,1797.0,0.055635]
[1743638765559,5.56365,1797.4,1796.7,6.08]
[1743638765758,3.0,1797.2,1796.7,6.08]
[1743638766091,8.56421,1797.2,1796.7,6.08]
[1743638766389,3.0,1797.2,1796.7,6.08]
[1743638766694,0.8125,1797.3,1796.7,6.76465]
[1743638766858,3.0,1797.5,1796.8,0.05564163]
[1743638767059,3.0,1797.5,1796.7,12.33023]
[1743638767258,3.0,1797.5,1796.7,6.76465]
[1743638767490,3.0,1797.4,1796.7,6.76465]
[1743638767695,8.56363,1797.4,1796.8,0.676465]
[1743638767905,3.0,1797.4,1796.9,0.05563645]
[1743638768085,8.56432,1797.2,1796.7,6.08]
[1743638768282,6.3769,1797.6,1796.8,0.05564416]
[1743638768481,3.0,1797.5,1796.7,6.08]
[1743638768790,3.0,1797.5,1796.9,6.08]
[1743638768999,5.56402,1797.3,1796.9,6.08]
[1743638769202,5.56385,1797.4,1796.9,6.08]
[1743638769406,0.8139,1797.6,1796.7,6.08]
[1743638769699,0.8161,1797.8,1797.0,6.32941]
[1743638769888,6.3786,1797.8,1797.1,0.632941]
[1743638770089,6.3786,1797.8,1797.2,6.08]
[1743638770273,11.12552,1797.7,1797.2,6.08]
[1743638771010,5.56267,1797.7,1797.2,6.08]
[1743638771213,9.37849,1797.8,1797.2,6.08]
[1743638771623,3.8161,1797.8,1797.3,6.08]
[1743638771832,0.05,1797.9,1797.4,17.76945]
[1743638772122,0.05,1797.9,1797.5,6.8496]
[1743638772622,6.42234,1797.9,1797.2,6.08]
[1743638772780,3.642234,1797.8,1797.0,6.854]
[1743638772980,0.05,1797.9,1797.0,6.854]
[1743638773210,0.05,1797.9,1797.2,5.56405]
[1743638773391,0.05,1797.9,1797.4,0.8319]
[1743638773591,0.05,1797.9,1797.1,6.9119]
[1743638773826,0.05,1797.9,1797.2,11.64401]
[1743638774119,0.05,1797.9,1797.4,5.56345]
[1743638774319,0.05,1797.9,1797.5,5.56325]
[1743638774624,0.05,1797.9,1797.7,0.8197]
[1743638774785,0.05,1797.9,1797.8,6.08]
[1743638775675,0.05,1797.9,1797.8,17.80635]
[1743638775933,5.55631,1799.8,1798.2,0.7698]
[1743638776221,6.33754,1801.0,1799.9,3.7698]
[1743638776423,6.33754,1801.0,1800.0,5.61106833]
[1743638776424,0.785,1801.0,1800.0,5.61106833]
[1743638776590,0.785,1801.0,1800.0,0.05553833]
[1743638776798,0.785,1801.0,1799.9,0.7698]
[1743638776799,3.0,1800.4,1799.9,0.7698]
[1743638777003,5.5557,1800.0,1799.5,0.8111]
[1743638777216,5.55497,1800.2,1799.5,0.8111]
[1743638777417,5.5553,1800.1,1799.5,0.8111]
[1743638777937,3.0,1800.0,1799.5,0.8111]
[1743638778085,5.55497,1800.2,1799.5,0.8111]
[1743638778420,0.555497,1800.1,1799.6,0.05556161]
[1743638778615,6.33996,1800.3,1799.6,0.05556161]
[1743638778616,3.0,1800.2,1799.6,0.05556161]
[1743638778778,3.7853,1800.3,1799.6,0.05555791]
[1743638779112,0.7853,1800.3,1799.6,6.733]
[1743638779311,5.55428,1800.5,1799.6,6.7885502]
[1743638779512,0.05,1800.9,1799.9,5.55564]
[1743638779716,0.05,1800.9,1800.0,6.8415]
[1743638779888,0.05,1800.9,1800.1,12.3132]
[1743638780089,0.05,1800.9,1800.1,6.758]
[1743638780321,0.05,1800.9,1800.2,0.05552991]
[1743638780614,0.05,1800.9,1800.2,0.68135299]
[1743638781580,0.05,1800.9,1800.3,6.8976]
[1743638781785,0.05,1800.9,1800.3,19.24997]
[1743638781985,0.05,1800.9,1800.3,0.8176]
[1743638782305,0.05,1800.9,1800.4,11.68982152]
[1743638782618,0.05,1800.9,1800.8,9.37168]
[1743638782918,0.05,1800.9,1800.8,22.37918371]
[1743638783220,0.05,1800.9,1800.8,22.32368]
[1743638783519,6.37317,1802.2,1801.2,5.5517]
[1743638783684,11.92224,1802.2,1801.4,0.7572]
[1743638783884,5.5491,1802.1,1801.4,0.7572]
[1743638784099,5.54907,1802.2,1801.4,0.7572]
[1743638784320,0.05,1802.9,1802.2,5.54859]
[1743638784488,0.05,1802.9,1802.3,7.86466702]
[1743638784689,0.05,1802.9,1802.3,0.7572]
[1743638784910,0.05,1802.9,1801.9,0.7572]
[1743638785126,3.0,1802.3,1801.8,7.065]
[1743638785327,0.7982,1802.4,1801.2,1.312413]
[1743638785495,3.0,1802.3,1801.2,0.7572]
[1743638785692,0.7982,1802.4,1801.7,5.55019]
[1743638786035,0.005,1802.7,1801.9,0.7853]
[1743638786386,3.0,1802.5,1801.9,0.7853]
[1743638786699,5.54754,1802.6,1801.9,0.7853]
[1743638786700,0.005,1802.7,1802.0,0.05548819]
[1743638786899,6.107567,1802.7,1801.9,0.7853]
[1743638787113,0.005,1802.7,1802.0,0.05547989]
[1743638787294,0.005,1802.7,1802.0,11.68467989]
[1743638787495,0.005,1802.7,1802.6,5.54754]
[1743638787722,0.005,1802.7,1802.6,18.96399104]
[1743638788036,0.005,1802.7,1802.6,13.364]
[1743638788323,0.005,1802.7,1802.6,20.32807]
[1743638788492,0.005,1802.7,1802.6,13.365]
[1743638788691,0.05,1802.9,1802.8,5.54692]
[1743638788923,0.05,1802.9,1802.8,12.45956587]
[1743638789091,0.05,1802.9,1802.8,12.40412]
[1743638789299,0.05,1802.9,1802.8,6.8572]
[1743638789498,0.05,1802.9,1802.8,7.62000111]
[1743638789733,0.05,1802.9,1802.8,0.05544811]
[1743638789950,1e-05,1802.9,1802.8,13.466]
[1743638790094,6.12,1804.7,1802.8,13.466]
[1743638790095,5.54242,1804.3,1803.4,0.8325]
[1743638790295,5.54242,1804.3,1803.5,0.0554334]
[1743638790489,3.0,1803.8,1803.5,0.0554334]
[1743638790735,3.0,1803.8,1802.8,0.7502]
[1743638790736,5.54548,1803.3,1802.8,0.7502]
[1743638791033,5.54548,1803.3,1802.4,7.405]
[1743638791034,5.54554,1803.3,1802.4,0.7502]
[1743638791233,0.7546,1803.5,1802.4,0.7502]
[1743638791536,3.0,1803.7,1802.7,5.54722]
[1743638791724,5.54385,1803.8,1802.9,5.54648]
[1743638791893,3.0,1803.6,1803.0,7.52344572]
[1743638792094,8.54461,1803.6,1803.0,7.468]
[1743638792428,0.554385,1803.7,1803.0,7.468]
[1743638792724,0.8396,1803.9,1803.0,7.523447]
[1743638792930,0.05,1803.9,1803.2,5.54568]
[1743638793129,0.05,1803.9,1803.3,0.8132]
[1743638793330,0.05,1803.9,1803.3,6.35858]
[1743638793636,3.05,1803.9,1803.3,0.8132]
[1743638793820,3.0,1803.6,1803.0,7.468]
[1743638794020,0.05,1803.9,1803.2,5.54556]
[1743638794221,0.05,1803.9,1803.3,0.05544732]
[1743638794427,3.05,1803.9,1803.3,0.05544732]
[1743638794733,0.05,1803.9,1803.3,0.05544732]
[1743638795121,0.05,1803.9,1803.2,5.60100536]
[1743638795451,0.05,1803.9,1803.2,0.05543529]
[1743638795653,5.54433,1803.7,1802.9,8.3732]
[1743638795806,8.54406,1803.8,1802.9,8.3732]
[1743638796002,8.54497,1803.5,1803.0,0.05544708]
[1743638796244,5.54388,1803.8,1802.5,7.564]
[1743638796443,3.0,1803.2,1802.5,0.7637]
[1743638796834,14.09048,1803.4,1802.6,0.05546155]
[1743638797038,8.54511,1803.4,1802.6,0.05546155]
[1743638797350,3.0,1803.4,1802.5,0.7637]
[1743638797553,5.54488,1803.5,1802.6,0.05546156]
[1743638797846,3.7627,1803.7,1802.8,5.54671]
[1743638798004,3.7627,1803.7,1802.8,11.09344]
[1743638798205,5.59365,1803.9,1803.0,0.819]
[1743638798423,8.5441,1803.8,1803.0,0.819]
[1743638798904,8.54397,1803.8,1803.0,0.819]
[1743638799102,3.0,1803.5,1803.1,0.05544591]
[1743638799299,3.0,1803.3,1802.7,0.7613]
[1743638799531,6.30709,1803.5,1802.7,0.7613]
[1743638799834,0.859397,1803.8,1802.8,0.05545411]
[1743638800043,6.35377,1803.9,1803.0,5.54627]
[1743638800330,8.54389,1803.8,1803.1,0.05544772]
[1743638800536,3.0,1803.8,1803.1,0.05544772]
[1743638800833,6.35377,1803.9,1803.1,0.05544772]
[1743638801036,5.54397,1803.8,1803.1,0.05544772]
[1743638801242,11.08804,1803.8,1802.9,13.14148]
[1743638801542,5.54397,1803.8,1803.0,1.314148]
[1743638801833,5.54428,1803.7,1803.0,1.314148]
[1743638802334,3.0,1803.8,1803.0,1.314148]
[1743638802638,8.54402,1803.8,1803.0,1.3695926]
[1743638802867,3.0,1803.8,1803.0,6.9157226]
[1743638803071,3.0,1803.8,1803.1,0.69157226]
[1743638803270,3.0,1803.8,1803.3,0.7643]
[1743638803571,0.8102,1803.9,1803.3,0.7643]
[1743638803572,0.05,1803.9,1803.5,5.54456]
[1743638803868,0.05,1803.9,1803.6,5.59984798]
[1743638804168,0.05,1803.9,1803.8,6.34965]
[1743638804382,0.05,1803.9,1803.8,6.984615]
[1743638804547,0.05,1803.9,1803.8,1.440765]
[1743638804949,0.05,1803.9,1803.8,1.49618373]
[1743638805152,0.05,1803.9,1803.8,1.440765]
[1743638805354,0.05,1803.9,1803.8,6.984615]
[1743638805637,0.05,1803.9,1803.8,1.440765]
[1743638805836,0.05,1803.9,1803.8,0.8058]
[1743638806048,0.05,1803.9,1803.8,6.34965]
[1743638806265,0.05,1803.9,1803.8,0.8058]
[1743638806646,0.05,1803.9,1803.8,6.34965]
[1743638806852,0.05,1803.9,1803.8,6.40506813]
[1743638807051,0.05,1803.9,1803.8,2.00072181]
[1743638807581,0.05,1803.9,1803.8,0.8058]
[1743638807745,0.05,1803.9,1803.6,8.3118]
[1743638807942,0.05,1803.9,1803.3,7.576]
[1743638808145,0.05,1804.9,1803.4,6.08]
[1743638808474,0.42559563,1806.5,1805.2,0.7898]
[1743638808650,5.53819,1805.7,1805.3,0.05537684]
[1743638808840,5.53819,1805.7,1805.0,7.767]
[1743638808841,5.53834,1805.6,1804.8,0.7826]
[1743638809041,8.53878,1805.5,1804.8,0.7826]
[1743638809246,0.05,1805.9,1804.9,0.05539609]
[1743638809474,3.0,1805.4,1804.9,0.05539609]
[1743638809679,5.53987,1805.1,1804.5,0.83799397]
[1743638809876,5.54,1805.1,1804.6,0.05540109]
[1743638810174,0.7665,1805.7,1804.7,5.54088]
[1743638810340,0.7665,1805.7,1804.8,9.481688]
[1743638810677,3.0,1805.5,1804.9,0.05538603]
[1743638810884,5.53876,1805.5,1804.9,0.05538603]
[1743638811091,5.58763,1805.9,1804.9,0.05538603]
[1743638811252,0.05,1805.9,1805.0,5.54001]
[1743638811451,0.05,1805.9,1805.1,0.05537675]
[1743638811964,5.53877,1805.5,1805.1,0.05537675]
[1743638812180,5.53877,1805.5,1804.9,0.0553919]
[1743638812345,3.0,1805.7,1804.9,0.0553919]
[1743638812681,5.53774,1805.8,1804.9,0.0553919]
[1743638812880,0.05,1805.9,1805.2,5.53931]
[1743638813084,0.05,1805.9,1805.4,5.53889]
[1743638813296,0.05,1805.9,1805.3,8.19136764]
[1743638813297,0.05,1805.9,1805.5,0.83666366]
[1743638813450,0.05,1805.9,1805.5,0.05536366]
[1743638813451,5.58742,1805.9,1805.5,0.05536366]
[1743638813791,0.608742,1805.9,1805.5,0.05536366]
[1743638813998,6.146192,1805.9,1805.5,0.05536366]
[1743638814149,3.0,1805.6,1805.0,0.22846584]
[1743638814352,5.53921,1805.4,1805.0,0.17307971]
[1743638814578,5.5398,1805.2,1805.0,0.17307971]
[1743638814750,9.09383,1805.1,1804.4,8.29107971]
[1743638814946,8.54031,1805.0,1804.4,8.29107971]
[1743638815362,10.0,1808.3,1804.5,0.84910456]
[1743638815363,0.05,1805.9,1804.5,0.84910456]
[1743638815567,0.05,1805.9,1804.9,5.54022]
[1743638815871,0.05,1805.9,1805.2,5.53951]
[1743638816071,0.05,1805.9,1805.4,5.53893]
[1743638816276,0.05,1805.9,1805.5,9.12707371]
[1743638816481,0.05,1805.9,1805.6,5.5382]
[1743638816677,0.05,1805.9,1805.7,0.05536292]
[1743638816907,0.05,1805.9,1805.7,0.61471921]
[1743638817466,0.05,1805.9,1805.7,0.55935629]
[1743638817700,0.05,1805.9,1805.8,6.33031]
[1743638818629,0.05,1805.9,1805.8,6.38566373]
[1743638818933,0.05,1805.9,1805.8,0.7926]
[1743638819283,0.05,1805.9,1805.8,0.84796259]
[1743638819615,0.05,1805.9,1805.1,0.8086]
[1743638819785,0.05,1805.9,1805.1,6.34843]
[1743638819985,0.05,1805.9,1805.2,0.634843]
[1743638820294,0.05,1805.9,1805.1,0.8086]
[1743638820493,0.05,1805.9,1804.8,6.08]
[1743638820494,0.7874,1805.6,1804.8,0.8262]
[1743638820691,0.7874,1805.6,1804.8,6.36688]
[1743638820893,0.7874,1805.6,1804.9,0.05538698]
[1743638821205,5.53875,1805.5,1804.9,0.05538707]
[1743638821410,6.171365,1805.5,1804.9,0.05538707]
[1743638821589,0.862,1805.9,1804.9,0.05538707]
[1743638821789,0.05,1805.9,1805.1,0.7505]
[1743638821994,0.05,1805.9,1805.3,5.53899]
[1743638822197,0.05,1805.9,1805.4,5.59412811]
[1743638822479,0.05,1805.9,1805.4,0.05536811]
[1743638822684,0.05,1805.9,1805.2,6.13536948]
[1743638822885,0.05,1805.9,1805.3,6.15256695]
[1743638823190,0.05,1805.9,1805.5,6.35103]
[1743638823418,0.05,1805.9,1805.6,6.13536206]
[1743638823587,0.05,1805.9,1805.8,5.53771]
[1743638823904,0.05,1805.9,1805.8,11.61771]
[1743638824102,0.05,1805.9,1805.8,13.333268]
[1743638825286,0.16814617,1806.7,1806.2,5.53631]
[1743638825589,0.16814617,1806.7,1806.5,5.53537]
[1743638825919,0.16814617,1806.7,1806.6,0.05533463]
[1743638826119,8.251,1807.6,1806.6,0.05533463]
[1743638826120,0.05,1807.9,1807.2,5.53342]
[1743638826319,0.05,1807.9,1807.7,5.53184]